[Event "Late-Titled-Tuesday-Blitz-January-23-2024"]
[Site "Chess.com"]
[Date "2024.01.23"]
[Round "3"]
[White "PapaieDudu"]
[Black "Crazy_girl99"]
[Result "0-1"]
[WhiteElo "2419"]
[BlackElo "2605"]
[TimeControl "180+1"]
[EndTime "14:25:47 PST"]
[Termination "Crazy_girl99 won by resignation"]

1. e4 {[%clk 0:02:53.9]} 1... e5 {[%clk 0:02:59.5]} 2. Nf3 {[%clk 0:02:53.6]}
2... Nc6 {[%clk 0:02:59.7]} 3. Bb5 {[%clk 0:02:53.1]} 3... a6 {[%clk 0:02:59.7]}
4. Ba4 {[%clk 0:02:53]} 4... Nf6 {[%clk 0:02:59.9]} 5. d3 {[%clk 0:02:53]} 5...
b5 {[%clk 0:02:57.7]} 6. Bb3 {[%clk 0:02:52.7]} 6... Bc5 {[%clk 0:02:58.4]} 7.
O-O {[%clk 0:02:51.6]} 7... d6 {[%clk 0:02:58.8]} 8. Bg5 {[%clk 0:02:51]} 8...
h6 {[%clk 0:02:58.7]} 9. Bh4 {[%clk 0:02:50.9]} 9... g5 {[%clk 0:02:57.8]} 10.
Nxg5 {[%clk 0:02:28.8]} 10... hxg5 {[%clk 0:02:57.6]} 11. Bxg5 {[%clk
0:02:29.5]} 11... Rg8 {[%clk 0:02:54.9]} 12. h4 {[%clk 0:02:29]} 12... Rg6
{[%clk 0:02:49]} 13. c3 {[%clk 0:02:18]} 13... Qd7 {[%clk 0:02:45.5]} 14. Qf3
{[%clk 0:01:57.7]} 14... Qg4 {[%clk 0:02:41.9]} 15. Nd2 {[%clk 0:01:43.5]} 15...
Qxf3 {[%clk 0:02:33.7]} 16. Nxf3 {[%clk 0:01:44]} 16... Bg4 {[%clk 0:02:34]} 17.
Nh2 {[%clk 0:01:43]} 17... Be6 {[%clk 0:02:31.6]} 18. Bc2 {[%clk 0:01:34.8]}
18... Nh7 {[%clk 0:02:30.1]} 19. Be3 {[%clk 0:01:32.4]} 19... Bh3 {[%clk
0:02:26.9]} 20. Bxc5 {[%clk 0:01:15.7]} 20... Rxg2+ {[%clk 0:02:24.6]} 21. Kh1
{[%clk 0:01:15.8]} 21... dxc5 {[%clk 0:02:24.7]} 22. Bb3 {[%clk 0:01:09]} 22...
Rd8 {[%clk 0:02:16.7]} 23. Rad1 {[%clk 0:01:02.9]} 23... Rxh2+ {[%clk
0:02:08.2]} 24. Kxh2 {[%clk 0:01:02.9]} 24... Bxf1 {[%clk 0:02:08.2]} 25. Rxf1
{[%clk 0:01:03.6]} 25... Rxd3 {[%clk 0:02:08.4]} 26. f4 {[%clk 0:01:01.1]} 26...
c4 {[%clk 0:02:07]} 27. Bd1 {[%clk 0:00:58.9]} 27... Rd2+ {[%clk 0:02:07.2]} 28.
Kg3 {[%clk 0:00:58.7]} 28... Nf6 {[%clk 0:02:07.1]} 29. fxe5 {[%clk 0:00:56.8]}
29... Nxe4+ {[%clk 0:02:06.4]} 30. Kf4 {[%clk 0:00:57]} 30... Nc5 {[%clk
0:02:05.3]} 31. Rh1 {[%clk 0:00:52.6]} 31... Nd3+ {[%clk 0:02:03.9]} 32. Kf5
{[%clk 0:00:50.4]} 32... Nf2 {[%clk 0:02:02.9]} 33. Bf3 {[%clk 0:00:44.8]} 33...
Ne7+ {[%clk 0:02:02.5]} 34. Kf6 {[%clk 0:00:42.5]} 34... Nxh1 {[%clk 0:02:02.6]}
0-1

[Event "Late-Titled-Tuesday-Blitz-January-23-2024"]
[Site "Chess.com"]
[Date "2024.01.23"]
[Round "3"]
[White "thesupera12"]
[Black "norwaytoadog"]
[Result "1-0"]
[WhiteElo "2524"]
[BlackElo "2293"]
[TimeControl "180+1"]
[EndTime "14:25:53 PST"]
[Termination "thesupera12 won by resignation"]

1. d4 {[%clk 0:03:00.3]} 1... d5 {[%clk 0:02:56.5]} 2. Bg5 {[%clk 0:02:56.7]}
2... f6 {[%clk 0:02:54.7]} 3. Bf4 {[%clk 0:02:56.3]} 3... Nc6 {[%clk 0:02:53.1]}
4. Nf3 {[%clk 0:02:56.5]} 4... Bg4 {[%clk 0:02:52.6]} 5. Nbd2 {[%clk 0:02:54.2]}
5... e6 {[%clk 0:02:50.6]} 6. h3 {[%clk 0:02:53.3]} 6... Bh5 {[%clk 0:02:49.6]}
7. e3 {[%clk 0:02:52.3]} 7... Bd6 {[%clk 0:02:49.7]} 8. Bxd6 {[%clk 0:02:51.7]}
8... cxd6 {[%clk 0:02:43.5]} 9. c4 {[%clk 0:02:51.7]} 9... dxc4 {[%clk
0:02:41.4]} 10. Bxc4 {[%clk 0:02:51]} 10... d5 {[%clk 0:02:41.2]} 11. Bd3 {[%clk
0:02:48.3]} 11... Nge7 {[%clk 0:02:40.5]} 12. O-O {[%clk 0:02:48.4]} 12... Bg6
{[%clk 0:02:37.8]} 13. Bxg6+ {[%clk 0:02:47.1]} 13... hxg6 {[%clk 0:02:35.3]}
14. Rc1 {[%clk 0:02:46.1]} 14... Nf5 {[%clk 0:02:25.4]} 15. Qa4 {[%clk
0:02:35.8]} 15... O-O {[%clk 0:02:16]} 16. Nb3 {[%clk 0:02:24]} 16... Nd6 {[%clk
0:02:06.5]} 17. Nc5 {[%clk 0:02:23.2]} 17... Qe7 {[%clk 0:01:51.7]} 18. Nxb7
{[%clk 0:02:21.1]} 18... Nxd4 {[%clk 0:01:40]} 19. Nxd4 {[%clk 0:02:08.7]} 19...
Nxb7 {[%clk 0:01:32.5]} 20. Rc6 {[%clk 0:01:57.8]} 20... Nd8 {[%clk 0:01:24.6]}
21. Rc3 {[%clk 0:01:51.2]} 21... Nf7 {[%clk 0:01:16.9]} 22. Rfc1 {[%clk
0:01:50.2]} 22... Ne5 {[%clk 0:01:13.5]} 23. Rc7 {[%clk 0:01:49.3]} 23... Qd8
{[%clk 0:01:04.6]} 24. Nxe6 {[%clk 0:01:48.4]} 1-0

[Event "Late-Titled-Tuesday-Blitz-January-23-2024"]
[Site "Chess.com"]
[Date "2024.01.23"]
[Round "3"]
[White "SocoLoco"]
[Black "Cheer_Down"]
[Result "0-1"]
[WhiteElo "2208"]
[BlackElo "2432"]
[TimeControl "180+1"]
[EndTime "14:25:57 PST"]
[Termination "Cheer_Down won by checkmate"]

1. e4 {[%clk 0:03:00.9]} 1... c5 {[%clk 0:02:59.4]} 2. c3 {[%clk 0:02:59.9]}
2... Nf6 {[%clk 0:02:58]} 3. e5 {[%clk 0:02:59.5]} 3... Nd5 {[%clk 0:02:58.1]}
4. d4 {[%clk 0:02:59.7]} 4... cxd4 {[%clk 0:02:57.5]} 5. cxd4 {[%clk 0:02:59.7]}
5... d6 {[%clk 0:02:54.4]} 6. exd6 {[%clk 0:03:00.6]} 6... e6 {[%clk 0:02:49.8]}
7. Nc3 {[%clk 0:03:00.8]} 7... Bxd6 {[%clk 0:02:46.5]} 8. Nxd5 {[%clk
0:02:57.5]} 8... exd5 {[%clk 0:02:46]} 9. Nf3 {[%clk 0:02:57.8]} 9... O-O {[%clk
0:02:44.4]} 10. Be2 {[%clk 0:02:58]} 10... Nc6 {[%clk 0:02:43.2]} 11. O-O {[%clk
0:02:56.8]} 11... Bf5 {[%clk 0:02:43.1]} 12. Bg5 {[%clk 0:02:52.5]} 12... Qb6
{[%clk 0:02:41.6]} 13. Qd2 {[%clk 0:02:49.9]} 13... Rfe8 {[%clk 0:02:38.7]} 14.
Rfe1 {[%clk 0:02:45]} 14... Bb4 {[%clk 0:02:38.6]} 15. Qf4 {[%clk 0:02:41.9]}
15... Bxe1 {[%clk 0:02:38.7]} 16. Qxf5 {[%clk 0:02:35.9]} 16... Rxe2 {[%clk
0:02:33.7]} 17. Rxe1 {[%clk 0:02:10.5]} 17... Nxd4 {[%clk 0:02:31.4]} 18. Qb1
{[%clk 0:01:45.1]} 18... Nxf3+ {[%clk 0:02:24.6]} 19. gxf3 {[%clk 0:01:46]}
19... Rxe1+ {[%clk 0:02:24.9]} 20. Qxe1 {[%clk 0:01:45.6]} 20... Qg6 {[%clk
0:02:25]} 21. f4 {[%clk 0:01:37.1]} 21... h6 {[%clk 0:02:25.1]} 22. h4 {[%clk
0:01:35]} 22... hxg5 {[%clk 0:02:24.9]} 23. fxg5 {[%clk 0:01:35.5]} 23... Qe4
{[%clk 0:02:23.4]} 24. Qd1 {[%clk 0:01:28.9]} 24... Qxh4 {[%clk 0:02:21]} 25.
Qxd5 {[%clk 0:01:28.1]} 25... Re8 {[%clk 0:02:21]} 26. Qa5 {[%clk 0:01:15.7]}
26... Qg4+ {[%clk 0:02:17.9]} 27. Kf1 {[%clk 0:01:13.8]} 27... Qc4+ {[%clk
0:02:16.3]} 28. Kg1 {[%clk 0:01:11.5]} 28... b6 {[%clk 0:02:15.5]} 29. Qd2
{[%clk 0:01:02.8]} 29... Qg4+ {[%clk 0:02:13.4]} 30. Kf1 {[%clk 0:01:01.4]}
30... Qh3+ {[%clk 0:02:10.9]} 31. Kg1 {[%clk 0:00:57.5]} 31... Qe6 {[%clk
0:02:10.7]} 32. Kh2 {[%clk 0:00:50.8]} 32... Qe2 {[%clk 0:02:06.8]} 33. Qd4
{[%clk 0:00:50.4]} 33... g6 {[%clk 0:02:06.3]} 34. a4 {[%clk 0:00:47.9]} 34...
Re4 {[%clk 0:02:05.3]} 35. Qd8+ {[%clk 0:00:45.7]} 35... Kh7 {[%clk 0:02:05.5]}
36. Qf6 {[%clk 0:00:41.9]} 36... Rh4+ {[%clk 0:02:00.3]} 37. Kg3 {[%clk
0:00:41.5]} 37... Qg4# {[%clk 0:02:00.1]} 0-1

[Event "Late-Titled-Tuesday-Blitz-January-23-2024"]
[Site "Chess.com"]
[Date "2024.01.23"]
[Round "3"]
[White "santosalberto1987"]
[Black "vyprd"]
[Result "0-1"]
[WhiteElo "2553"]
[BlackElo "2348"]
[TimeControl "180+1"]
[EndTime "14:26:13 PST"]
[Termination "vyprd won by checkmate"]

1. e4 {[%clk 0:02:54.5]} 1... c5 {[%clk 0:02:58.8]} 2. Nf3 {[%clk 0:02:54.5]}
2... Nc6 {[%clk 0:02:58.1]} 3. Nc3 {[%clk 0:02:54.3]} 3... e5 {[%clk 0:02:57.4]}
4. Bc4 {[%clk 0:02:54.2]} 4... g6 {[%clk 0:02:55.9]} 5. d3 {[%clk 0:02:53.6]}
5... h6 {[%clk 0:02:55.6]} 6. Nd2 {[%clk 0:02:52.3]} 6... Bg7 {[%clk 0:02:55.4]}
7. Nf1 {[%clk 0:02:51.5]} 7... d6 {[%clk 0:02:53]} 8. Ne3 {[%clk 0:02:51.7]}
8... Nge7 {[%clk 0:02:51.7]} 9. O-O {[%clk 0:02:51.4]} 9... g5 {[%clk
0:02:49.3]} 10. Ncd5 {[%clk 0:02:50.6]} 10... O-O {[%clk 0:02:47.9]} 11. a4
{[%clk 0:02:44.8]} 11... Ng6 {[%clk 0:02:47.1]} 12. Nf5 {[%clk 0:02:42.1]} 12...
Nce7 {[%clk 0:02:40.8]} 13. Nfxe7+ {[%clk 0:02:25.6]} 13... Nxe7 {[%clk
0:02:39.5]} 14. Qh5 {[%clk 0:02:26.2]} 14... Nxd5 {[%clk 0:02:37.3]} 15. Bxd5
{[%clk 0:02:26.2]} 15... Rb8 {[%clk 0:02:33]} 16. h4 {[%clk 0:02:26.1]} 16...
gxh4 {[%clk 0:02:24.8]} 17. Bxh6 {[%clk 0:02:25.4]} 17... Be6 {[%clk 0:02:11.7]}
18. Bxe6 {[%clk 0:02:18.7]} 18... fxe6 {[%clk 0:02:10.6]} 19. Qg6 {[%clk
0:02:18.3]} 19... Qf6 {[%clk 0:02:10]} 20. Qxg7+ {[%clk 0:02:04.8]} 20... Qxg7
{[%clk 0:02:09.2]} 21. Bxg7 {[%clk 0:02:05.7]} 21... Kxg7 {[%clk 0:02:09.3]} 22.
f3 {[%clk 0:02:05.3]} 22... Kg6 {[%clk 0:02:05.5]} 23. Kf2 {[%clk 0:02:05.3]}
23... Kg5 {[%clk 0:02:05.6]} 24. Rh1 {[%clk 0:02:05.3]} 24... Rh8 {[%clk
0:01:58.8]} 25. Rh3 {[%clk 0:02:02.8]} 25... Rh5 {[%clk 0:01:56]} 26. Rah1
{[%clk 0:02:02.1]} 26... Rbh8 {[%clk 0:01:54.6]} 27. c3 {[%clk 0:02:00.4]} 27...
b6 {[%clk 0:01:53.9]} 28. Ke3 {[%clk 0:01:55.1]} 28... R8h7 {[%clk 0:01:51.2]}
29. b4 {[%clk 0:01:47.4]} 29... cxb4 {[%clk 0:01:47.9]} 30. cxb4 {[%clk
0:01:47.3]} 30... d5 {[%clk 0:01:47.9]} 31. g3 {[%clk 0:01:44.2]} 31... hxg3
{[%clk 0:01:45.1]} 32. Rxg3+ {[%clk 0:01:44.5]} 32... Kf6 {[%clk 0:01:45.5]} 33.
Rxh5 {[%clk 0:01:29.8]} 33... Rxh5 {[%clk 0:01:46.4]} 34. Rg2 {[%clk 0:01:29.8]}
34... Rh1 {[%clk 0:01:45.2]} 35. Rc2 {[%clk 0:01:28]} 35... Ra1 {[%clk
0:01:44.3]} 36. a5 {[%clk 0:01:23.9]} 36... bxa5 {[%clk 0:01:45.2]} 37. bxa5
{[%clk 0:01:24.6]} 37... Rxa5 {[%clk 0:01:44.7]} 38. Rc6 {[%clk 0:01:24.4]}
38... d4+ {[%clk 0:01:38.7]} 39. Ke2 {[%clk 0:01:24.5]} 39... Ra2+ {[%clk
0:01:38.2]} 40. Ke1 {[%clk 0:01:24.5]} 40... a5 {[%clk 0:01:37.8]} 41. Ra6
{[%clk 0:01:23.3]} 41... a4 {[%clk 0:01:38.1]} 42. Kf1 {[%clk 0:01:23.2]} 42...
a3 {[%clk 0:01:38.2]} 43. Kg1 {[%clk 0:01:23.3]} 43... Kg5 {[%clk 0:01:37.6]}
44. Rxe6 {[%clk 0:01:22.8]} 44... Kf4 {[%clk 0:01:36.8]} 45. Rf6+ {[%clk
0:01:14.8]} 45... Kg3 {[%clk 0:01:34.6]} 46. f4 {[%clk 0:01:15.7]} 46... Ra1#
{[%clk 0:01:33.5]} 0-1

[Event "Late-Titled-Tuesday-Blitz-January-23-2024"]
[Site "Chess.com"]
[Date "2024.01.23"]
[Round "3"]
[White "carloseduar100"]
[Black "Pawngobblerx2000"]
[Result "0-1"]
[WhiteElo "2305"]
[BlackElo "2559"]
[TimeControl "180+1"]
[EndTime "14:26:14 PST"]
[Termination "Pawngobblerx2000 won by resignation"]

1. d4 {[%clk 0:03:00.9]} 1... d5 {[%clk 0:03:00.1]} 2. c3 {[%clk 0:03:00.5]}
2... Nf6 {[%clk 0:02:59.6]} 3. Bg5 {[%clk 0:03:00]} 3... Bf5 {[%clk 0:02:59.2]}
4. Nd2 {[%clk 0:02:59.5]} 4... c6 {[%clk 0:02:59.4]} 5. g3 {[%clk 0:02:59.5]}
5... Nbd7 {[%clk 0:02:59.5]} 6. Bg2 {[%clk 0:02:59.8]} 6... e6 {[%clk
0:02:57.7]} 7. Ngf3 {[%clk 0:02:58.9]} 7... Be7 {[%clk 0:02:57.6]} 8. O-O {[%clk
0:02:58.7]} 8... O-O {[%clk 0:02:57.5]} 9. Ne5 {[%clk 0:02:58.9]} 9... h6 {[%clk
0:02:57.3]} 10. Nxd7 {[%clk 0:02:57.2]} 10... Qxd7 {[%clk 0:02:58.2]} 11. Bf4
{[%clk 0:02:54.8]} 11... c5 {[%clk 0:02:52.6]} 12. Nf3 {[%clk 0:02:50.9]} 12...
cxd4 {[%clk 0:02:48.2]} 13. Qxd4 {[%clk 0:02:48.7]} 13... Rfc8 {[%clk
0:02:45.4]} 14. Ne5 {[%clk 0:02:44.6]} 14... Qe8 {[%clk 0:02:45.5]} 15. Rad1
{[%clk 0:02:38.7]} 15... Ne4 {[%clk 0:02:40.8]} 16. Nd3 {[%clk 0:01:49.9]} 16...
Rc4 {[%clk 0:02:11.2]} 17. Qe3 {[%clk 0:01:49.1]} 17... g5 {[%clk 0:02:11.2]}
18. Be5 {[%clk 0:01:46.5]} 18... f6 {[%clk 0:02:11.4]} 19. Bd4 {[%clk
0:01:43.4]} 19... e5 {[%clk 0:02:07.6]} 20. Bxe5 {[%clk 0:01:37.7]} 20... fxe5
{[%clk 0:02:04.8]} 21. Nxe5 {[%clk 0:01:38.6]} 21... Bc5 {[%clk 0:02:04]} 22.
Qc1 {[%clk 0:01:30.7]} 22... Qxe5 {[%clk 0:02:02.3]} 23. h4 {[%clk 0:01:13.7]}
23... Qxg3 {[%clk 0:01:57.8]} 24. e3 {[%clk 0:00:57.8]} 24... Nxf2 {[%clk
0:01:48]} 25. Qd2 {[%clk 0:00:34.9]} 25... Be4 {[%clk 0:01:29.3]} 26. Qxf2
{[%clk 0:00:31.8]} 26... Bxe3 {[%clk 0:01:28.8]} 0-1

[Event "Late-Titled-Tuesday-Blitz-January-23-2024"]
[Site "Chess.com"]
[Date "2024.01.23"]
[Round "3"]
[White "ITheOnlyME"]
[Black "Fernando_Offermann"]
[Result "0-1"]
[WhiteElo "2392"]
[BlackElo "2444"]
[TimeControl "180+1"]
[EndTime "14:26:20 PST"]
[Termination "Fernando_Offermann won by checkmate"]

1. d4 {[%clk 0:03:00.9]} 1... Nf6 {[%clk 0:02:58.9]} 2. Bf4 {[%clk 0:03:01.3]}
2... c5 {[%clk 0:02:58.2]} 3. e3 {[%clk 0:03:01.7]} 3... cxd4 {[%clk 0:02:55.9]}
4. exd4 {[%clk 0:03:01.7]} 4... d5 {[%clk 0:02:56.8]} 5. c3 {[%clk 0:03:00.3]}
5... Nc6 {[%clk 0:02:56.5]} 6. Bd3 {[%clk 0:02:58.7]} 6... e6 {[%clk 0:02:54.4]}
7. Nf3 {[%clk 0:02:56.4]} 7... Bd6 {[%clk 0:02:54.2]} 8. Bg3 {[%clk 0:02:56.6]}
8... O-O {[%clk 0:02:53.5]} 9. Nbd2 {[%clk 0:02:55.5]} 9... a6 {[%clk
0:02:53.4]} 10. a4 {[%clk 0:02:52.5]} 10... Rb8 {[%clk 0:02:52.3]} 11. Ne5
{[%clk 0:02:43.8]} 11... Qc7 {[%clk 0:02:51.1]} 12. f4 {[%clk 0:02:42.3]} 12...
Ne7 {[%clk 0:02:50]} 13. Bh4 {[%clk 0:02:39.3]} 13... Nf5 {[%clk 0:02:45.9]} 14.
Bxf5 {[%clk 0:02:08.8]} 14... exf5 {[%clk 0:02:44.7]} 15. Bxf6 {[%clk
0:02:09.5]} 15... gxf6 {[%clk 0:02:44.2]} 16. Nd3 {[%clk 0:02:08.6]} 16... Re8+
{[%clk 0:02:43.4]} 17. Kf1 {[%clk 0:01:53.6]} 17... Bxf4 {[%clk 0:02:42.8]} 18.
Nf3 {[%clk 0:01:51.3]} 18... Bd7 {[%clk 0:02:40.4]} 19. g3 {[%clk 0:01:48.1]}
19... Bh6 {[%clk 0:02:37.2]} 20. Kg2 {[%clk 0:01:46.6]} 20... b5 {[%clk
0:02:36.4]} 21. axb5 {[%clk 0:01:46.1]} 21... Bxb5 {[%clk 0:02:36.2]} 22. Nc5
{[%clk 0:01:29.4]} 22... Re2+ {[%clk 0:02:31.4]} 23. Kh3 {[%clk 0:01:27.3]}
23... f4 {[%clk 0:02:28.7]} 24. g4 {[%clk 0:01:15.8]} 24... Rbe8 {[%clk
0:02:25.3]} 25. b3 {[%clk 0:01:03.4]} 25... R8e3 {[%clk 0:02:23.8]} 26. Rf1
{[%clk 0:01:02.9]} 26... Qc8 {[%clk 0:02:22.4]} 27. c4 {[%clk 0:00:54.7]} 27...
dxc4 {[%clk 0:02:21.6]} 28. bxc4 {[%clk 0:00:55.6]} 28... Bxc4 {[%clk
0:02:10.1]} 29. Rc1 {[%clk 0:00:56]} 29... Bd5 {[%clk 0:02:03.8]} 30. Ne4 {[%clk
0:00:34.9]} 30... Qe6 {[%clk 0:01:59.5]} 31. Nc3 {[%clk 0:00:20.7]} 31... Bxf3
{[%clk 0:01:55.4]} 32. Rxf3 {[%clk 0:00:19.6]} 32... Rxf3+ {[%clk 0:01:54.5]}
33. Kh4 {[%clk 0:00:20.1]} 33... Rxh2# {[%clk 0:01:53.1]} 0-1

[Event "Late-Titled-Tuesday-Blitz-January-23-2024"]
[Site "Chess.com"]
[Date "2024.01.23"]
[Round "3"]
[White "gomeschess02"]
[Black "Revan_2002"]
[Result "0-1"]
[WhiteElo "2212"]
[BlackElo "2436"]
[TimeControl "180+1"]
[EndTime "14:26:32 PST"]
[Termination "Revan_2002 won by resignation"]

1. e4 {[%clk 0:02:57.6]} 1... c5 {[%clk 0:02:49.2]} 2. Nf3 {[%clk 0:02:55.7]}
2... e6 {[%clk 0:02:49.2]} 3. d4 {[%clk 0:02:50.1]} 3... cxd4 {[%clk 0:02:50.1]}
4. Nxd4 {[%clk 0:02:50.6]} 4... Nc6 {[%clk 0:02:50.7]} 5. Nc3 {[%clk 0:02:39.9]}
5... Qc7 {[%clk 0:02:49.7]} 6. Be3 {[%clk 0:02:24]} 6... a6 {[%clk 0:02:49.3]}
7. Qd2 {[%clk 0:02:06.1]} 7... b5 {[%clk 0:02:44.2]} 8. O-O-O {[%clk 0:02:05.1]}
8... Nf6 {[%clk 0:02:42.9]} 9. f3 {[%clk 0:02:03.3]} 9... Ne5 {[%clk 0:02:24.9]}
10. g4 {[%clk 0:01:55]} 10... Bb7 {[%clk 0:02:07.5]} 11. g5 {[%clk 0:01:43.4]}
11... b4 {[%clk 0:02:03.3]} 12. Na4 {[%clk 0:01:23.1]} 12... Nh5 {[%clk
0:02:02.3]} 13. Kb1 {[%clk 0:01:04.1]} 13... Be7 {[%clk 0:01:56.5]} 14. Rg1
{[%clk 0:00:59.2]} 14... d5 {[%clk 0:01:49.9]} 15. f4 {[%clk 0:00:57.3]} 15...
Nc4 {[%clk 0:01:45.1]} 16. Bxc4 {[%clk 0:00:56.8]} 16... dxc4 {[%clk 0:01:46]}
17. Qe2 {[%clk 0:00:50.3]} 17... Nxf4 {[%clk 0:01:39.4]} 18. Bxf4 {[%clk
0:00:44.9]} 18... Qxf4 {[%clk 0:01:40.3]} 19. Qxc4 {[%clk 0:00:30.6]} 19... Rc8
{[%clk 0:01:40.7]} 20. Qe2 {[%clk 0:00:16.9]} 20... O-O {[%clk 0:01:40.3]} 21.
Nb6 {[%clk 0:00:15.7]} 21... Rcd8 {[%clk 0:01:40.4]} 22. Rg4 {[%clk 0:00:12.1]}
22... Qe5 {[%clk 0:01:39.8]} 23. Nf3 {[%clk 0:00:08.6]} 23... Qb5 {[%clk
0:01:39.5]} 24. Nc4 {[%clk 0:00:02.9]} 24... Qxc4 {[%clk 0:01:38]} 0-1

[Event "Late-Titled-Tuesday-Blitz-January-23-2024"]
[Site "Chess.com"]
[Date "2024.01.23"]
[Round "3"]
[White "brunoo2003"]
[Black "kleinebeer98"]
[Result "1-0"]
[WhiteElo "2534"]
[BlackElo "2852"]
[TimeControl "180+1"]
[EndTime "14:26:35 PST"]
[Termination "brunoo2003 won by resignation"]

1. e4 {[%clk 0:02:51.8]} 1... e5 {[%clk 0:03:00.3]} 2. Nf3 {[%clk 0:02:49.4]}
2... Nc6 {[%clk 0:03:01]} 3. Bb5 {[%clk 0:02:48.4]} 3... f5 {[%clk 0:03:01.7]}
4. Nc3 {[%clk 0:02:46.3]} 4... fxe4 {[%clk 0:03:00.7]} 5. Nxe4 {[%clk
0:02:47.2]} 5... Nf6 {[%clk 0:03:01.3]} 6. Qe2 {[%clk 0:02:46.9]} 6... d5 {[%clk
0:03:00.9]} 7. Nxf6+ {[%clk 0:02:46.7]} 7... gxf6 {[%clk 0:03:01.8]} 8. d4
{[%clk 0:02:47]} 8... Bg7 {[%clk 0:03:02.5]} 9. dxe5 {[%clk 0:02:45]} 9... O-O
{[%clk 0:03:03.1]} 10. e6 {[%clk 0:02:45.4]} 10... Re8 {[%clk 0:03:02.4]} 11.
O-O {[%clk 0:02:43.3]} 11... Bxe6 {[%clk 0:03:02.7]} 12. Bxc6 {[%clk 0:01:40.9]}
12... bxc6 {[%clk 0:03:00.9]} 13. Nh4 {[%clk 0:01:39.7]} 13... f5 {[%clk
0:02:57.6]} 14. Qh5 {[%clk 0:01:38.4]} 14... Qf6 {[%clk 0:02:58.2]} 15. c3
{[%clk 0:01:35.4]} 15... Rab8 {[%clk 0:02:55.7]} 16. Bg5 {[%clk 0:01:34.9]}
16... Qf7 {[%clk 0:02:54.9]} 17. Qxf7+ {[%clk 0:01:33.9]} 17... Kxf7 {[%clk
0:02:55.8]} 18. Rab1 {[%clk 0:01:31.2]} 18... c5 {[%clk 0:02:56.1]} 19. Rfe1
{[%clk 0:01:05.2]} 19... d4 {[%clk 0:02:56.4]} 20. cxd4 {[%clk 0:01:01.4]} 20...
cxd4 {[%clk 0:02:57.3]} 21. b3 {[%clk 0:00:56.2]} 21... c5 {[%clk 0:02:57.2]}
22. Rbc1 {[%clk 0:00:54]} 22... c4 {[%clk 0:02:53.1]} 23. bxc4 {[%clk
0:00:50.8]} 23... Bxc4 {[%clk 0:02:54]} 24. Rxe8 {[%clk 0:00:43.7]} 24... Rxe8
{[%clk 0:02:52.4]} 25. Nxf5 {[%clk 0:00:41.8]} 25... Bf8 {[%clk 0:02:50.1]} 26.
Nxd4 {[%clk 0:00:36.3]} 26... Bxa2 {[%clk 0:02:50.7]} 27. h4 {[%clk 0:00:29.8]}
27... Kg6 {[%clk 0:02:43.5]} 28. Ra1 {[%clk 0:00:28.6]} 28... Bc4 {[%clk
0:02:43.1]} 29. Rxa7 {[%clk 0:00:27]} 29... Bc5 {[%clk 0:02:42.9]} 30. Ra4
{[%clk 0:00:20.5]} 30... Re1+ {[%clk 0:02:39.6]} 31. Kh2 {[%clk 0:00:20.4]}
31... Bd6+ {[%clk 0:02:40.5]} 32. f4 {[%clk 0:00:19.3]} 32... Bd3 {[%clk
0:02:37]} 33. Nf3 {[%clk 0:00:15.2]} 33... Rd1 {[%clk 0:02:35.3]} 34. Rd4 {[%clk
0:00:15.2]} 34... Bc7 {[%clk 0:02:35.8]} 35. Ne5+ {[%clk 0:00:14.7]} 35... Bxe5
{[%clk 0:02:36.1]} 36. fxe5 {[%clk 0:00:15.6]} 36... Kf5 {[%clk 0:02:36.9]} 37.
Bf6 {[%clk 0:00:12.6]} 37... h5 {[%clk 0:02:37.4]} 38. Rd8 {[%clk 0:00:11.2]}
38... Bc2 {[%clk 0:02:35.9]} 39. Rg8 {[%clk 0:00:11.5]} 39... Rd2 {[%clk
0:02:23.6]} 40. Rg5+ {[%clk 0:00:12.4]} 40... Ke6 {[%clk 0:02:19.9]} 41. Rxh5
{[%clk 0:00:12.9]} 41... Rd4 {[%clk 0:02:19.1]} 42. Rh8 {[%clk 0:00:11.8]} 42...
Be4 {[%clk 0:02:19.4]} 43. Rg8 {[%clk 0:00:10.2]} 43... Bd5 {[%clk 0:02:18.6]}
44. h5 {[%clk 0:00:09.8]} 44... Kf5 {[%clk 0:02:19.2]} 45. Rg5+ {[%clk 0:00:10]}
45... Kf4 {[%clk 0:02:19.6]} 46. h6 {[%clk 0:00:08.9]} 46... Be4 {[%clk
0:02:20.2]} 47. Rg7 {[%clk 0:00:08.4]} 47... Rd8 {[%clk 0:02:18.5]} 48. Bxd8
{[%clk 0:00:07.6]} 1-0

[Event "Late-Titled-Tuesday-Blitz-January-23-2024"]
[Site "Chess.com"]
[Date "2024.01.23"]
[Round "3"]
[White "Vicmary2005"]
[Black "ArtemDyachuk"]
[Result "0-1"]
[WhiteElo "1991"]
[BlackElo "2610"]
[TimeControl "180+1"]
[EndTime "14:26:38 PST"]
[Termination "ArtemDyachuk won on time"]

1. e4 {[%clk 0:03:00.9]} 1... e5 {[%clk 0:02:59]} 2. d4 {[%clk 0:03:00.1]} 2...
exd4 {[%clk 0:02:57.9]} 3. Nf3 {[%clk 0:02:59]} 3... Nc6 {[%clk 0:02:56.4]} 4.
Bc4 {[%clk 0:02:57.9]} 4... Nf6 {[%clk 0:02:55.8]} 5. e5 {[%clk 0:02:57.4]} 5...
d5 {[%clk 0:02:55.7]} 6. Bb5 {[%clk 0:02:56.5]} 6... Ne4 {[%clk 0:02:55.8]} 7.
Nxd4 {[%clk 0:02:56.1]} 7... Bd7 {[%clk 0:02:55.6]} 8. Bxc6 {[%clk 0:02:56.1]}
8... bxc6 {[%clk 0:02:56.5]} 9. O-O {[%clk 0:02:52.9]} 9... Bc5 {[%clk
0:02:53.6]} 10. f3 {[%clk 0:02:52.7]} 10... Ng5 {[%clk 0:02:52.4]} 11. f4 {[%clk
0:02:53.2]} 11... Ne4 {[%clk 0:02:49.4]} 12. Be3 {[%clk 0:02:52.9]} 12... h5
{[%clk 0:02:48.3]} 13. Nd2 {[%clk 0:02:28.4]} 13... Rb8 {[%clk 0:02:40.1]} 14.
Nxe4 {[%clk 0:01:45]} 14... dxe4 {[%clk 0:02:41]} 15. f5 {[%clk 0:01:44.8]}
15... Qe7 {[%clk 0:02:35.3]} 16. e6 {[%clk 0:00:50.9]} 16... fxe6 {[%clk
0:02:31.6]} 17. fxe6 {[%clk 0:00:51.8]} 17... Bxe6 {[%clk 0:02:32.5]} 18. Kh1
{[%clk 0:00:48.6]} 18... Bg4 {[%clk 0:02:29.2]} 19. Nxc6 {[%clk 0:00:28.9]}
19... Qe6 {[%clk 0:02:19.1]} 20. Nd4 {[%clk 0:00:19.1]} 20... Qg6 {[%clk
0:02:11.5]} 21. Qd2 {[%clk 0:00:17.8]} 21... Bd6 {[%clk 0:02:10.1]} 22. Bf4
{[%clk 0:00:15.5]} 22... O-O {[%clk 0:02:09.2]} 23. Bxd6 {[%clk 0:00:14.3]}
23... Qxd6 {[%clk 0:02:10.1]} 24. c3 {[%clk 0:00:11.9]} 24... c5 {[%clk
0:02:08.6]} 25. Nb3 {[%clk 0:00:10.9]} 25... Qxd2 {[%clk 0:02:06.4]} 26. Nxd2
{[%clk 0:00:11.8]} 26... e3 {[%clk 0:02:07.3]} 27. Nc4 {[%clk 0:00:10.3]} 27...
e2 {[%clk 0:02:07.2]} 28. Rfe1 {[%clk 0:00:09.7]} 28... Rbd8 {[%clk 0:02:01.4]}
29. Ne3 {[%clk 0:00:05.8]} 29... Rd2 {[%clk 0:01:55.6]} 30. Nxg4 {[%clk
0:00:05.3]} 30... hxg4 {[%clk 0:01:56.5]} 31. Rab1 {[%clk 0:00:06.1]} 31... Rxb2
{[%clk 0:01:54.2]} 32. Kg1 {[%clk 0:00:03.1]} 32... Rxa2 {[%clk 0:01:53.8]} 0-1